fUSD/lending_fUSD_20250811
["ID","MTS","AMOUNT","RATE_DAILY","PERIOD"]
[378607771,1754923936419,198.06,0.00015609,2]
[378607772,1754923936652,198.06,0.00015617,2]
[378607773,1754923936878,198.06,0.00015626,2]
[378607774,1754923937335,198.06,0.00015634,2]
[378607775,1754923937544,198.06,0.00015642,2]
[378607776,1754923937796,198.06,0.0001565,2]
[378607777,1754923938011,198.06,0.00015658,2]
[378607778,1754923938999,198.06,0.00015666,2]
[378607779,1754923939113,198.06,0.00015675,2]
[378607780,1754923939301,198.06,0.00015683,2]
[378607781,1754923939496,198.06,0.00015691,2]
[378607782,1754923939572,198.06,0.00015699,2]
[378607783,1754923939818,198.06,0.00015707,2]
[378607784,1754923940289,198.06,0.00015716,2]
[378607785,1754923940547,198.06,0.00015724,2]
[378607786,1754923948727,1000.0,0.00015568,2]
[378607787,1754923978286,218.0,0.000111,2]
[378607788,1754923978375,213.0,0.0001228,2]
[378607789,1754923978464,209.0,0.0001347,2]
[378607790,1754923979094,205.0,0.0001465,2]
[378607791,1754923979493,200.0,0.0001583,2]
[378607830,1754924032444,230.42,0.0001565,2]
[378607831,1754924059218,7494.49334164,0.00015568,2]
[378607832,1754924059241,15000.0,0.00015568,2]
[378607833,1754924059263,1405.50665836,0.00015568,2]
[378607876,1754924129073,200.0,0.00015632,2]
[378607879,1754924163114,170.0,0.00015568,7]
[378607881,1754924219721,250.0,0.00015568,2]
[378607882,1754924220547,182.22040565,0.00016001,2]
[378607883,1754924265611,508.0,0.00015369,2]
[378607890,1754924395915,12284.27293599,0.00015533,2]
[378607891,1754924395937,15000.0,0.00015533,2]
[378607892,1754924395958,15000.0,0.00015533,2]
[378607893,1754924395980,207.82706401,0.00015533,2]
[378607894,1754924399401,250.0,0.00015,2]
[378607895,1754924408898,334.57,0.00015568,2]
[378607899,1754924480932,166.45,0.00015568,2]
[378607904,1754924510596,197.0,0.000101,2]
[378607905,1754924511031,193.0,0.0001128,2]
[378607906,1754924511479,189.0,0.0001247,2]
[378607907,1754924511935,185.0,0.0001365,2]
[378607908,1754924512343,182.0,0.0001483,2]
[378607930,1754924625481,508.0,0.00015339,2]
[378607932,1754924679129,341.17,0.00013699,2]
[378607935,1754924701106,266.8419515,0.00016,2]
[378607940,1754924718116,1614.93736857,0.00016,7]
[378607943,1754924806905,535.38,0.00015393,2]
[378607944,1754924833160,1000.0,0.000159,5]
[378607948,1754924947025,185.91,0.00015507,2]
[378607949,1754924985843,508.0,0.00015332,2]
[378607956,1754925002054,8134.91361592,0.000154,2]
[378607957,1754925002078,15000.0,0.000154,2]
[378607958,1754925002101,765.08638408,0.000154,2]
[378607965,1754925025614,209.63,0.00015568,2]
[378607966,1754925030919,156.86,0.00015395,2]
[378607973,1754925032378,-250.0,0.0001602,2]
[378607975,1754925032390,-356.0,0.0001602,2]
[378607976,1754925032400,-1198.44003027,0.00016098,2]
[378607977,1754925032411,-1.55996973,0.00016098,2]
[378607978,1754925032421,-300.0,0.00016099,2]
[378607979,1754925032432,-198.85017413,0.00016099,2]
[378607980,1754925032462,-101.14982587,0.00016099,2]
[378607981,1754925032472,-195.98015766,0.00016099,2]
[378607982,1754925032630,-104.01984234,0.00016099,2]
[378607983,1754925032640,-500.0,0.000161,2]
[378607984,1754925032650,-500.0,0.000161,2]
[378607985,1754925032660,-500.0,0.000161,2]
[378607986,1754925032669,-500.0,0.000161,2]
[378607987,1754925032679,-500.0,0.000161,2]
[378607988,1754925032690,-500.0,0.000161,2]
[378607989,1754925032700,-463.11106264,0.000161,2]
[378607990,1754925032710,-233.0,0.00016149,2]
[378607991,1754925032721,-233.0,0.00016208,2]
[378607992,1754925032731,-399.8727,0.00016238,2]
[378607993,1754925032741,-553.84728294,0.00016238,2]
[378607994,1754925032752,-233.0,0.00016239,2]
[378607995,1754925032762,-233.0,0.00016288,2]
[378607996,1754925032772,-533.0,0.00016299,2]
[378607997,1754925032782,-1000.0,0.000163,2]
[378607998,1754925032792,-3978.46345638,0.000163,2]
[378607999,1754925032802,-2500.0,0.000163,2]
[378608000,1754925032813,-2362.93,0.000163,2]
[378608001,1754925032823,-478.29119956,0.00016328,2]
[378608002,1754925032833,-231.28369723,0.00016328,2]
[378608003,1754925032843,-153.16123983,0.00016338,2]
[378608004,1754925032852,-3017.12513213,0.00016338,2]
[378608005,1754925032862,-164.27128138,0.00016338,2]
[378608006,1754925032872,-153.7090992,0.00016338,2]
[378608007,1754925032882,-6247.1046,0.00016338,2]
[378608008,1754925032892,-5000.0,0.00016338,2]
[378608010,1754925032902,-233.0,0.00016342,2]
[378608012,1754925032912,-334.57,0.00016347,2]
[378608014,1754925032921,-508.0,0.00016347,3]
[378608016,1754925032931,-233.0,0.00016386,2]
[378608018,1754925032940,-623.67,0.0001639,3]
[378608020,1754925032950,-1000.0,0.00016399,2]
[378608022,1754925032959,-223.82498141,0.00016399,2]
[378608024,1754925032969,-183.41511535,0.00016399,2]
[378608025,1754925032979,-3281.299,0.00016399,2]
[378608027,1754925032989,-173.009,0.00016399,2]
[378608029,1754925033000,-1000.0,0.000164,2]
[378608032,1754925033012,-1000.0,0.000164,2]
[378608033,1754925033022,-588.0,0.000164,3]
[378608035,1754925033032,-169267.51544993,0.000164,3]
[378608037,1754925033043,-2362.81,0.000164,2]
[378608039,1754925033053,-1181.7,0.000164,2]
[378608041,1754925033063,-538.0,0.000164,2]
[378608044,1754925033073,-457.87080987,0.000164,3]
[378608046,1754925033083,-211.73953792,0.000164,3]
[378608048,1754925033093,-250.15,0.00016428,2]
[378608049,1754925033103,-600.0,0.00016428,2]
[378608051,1754925033113,-346.92554585,0.00016428,2]
[378608052,1754925033122,-160.0,0.00016428,2]
[378608053,1754925033132,-1438.09495884,0.00016428,2]
[378608054,1754925033142,-151.0,0.00016428,2]
[378608055,1754925033152,-233.0,0.00016431,2]
[378608056,1754925033163,-400.0,0.00016438,2]
[378608057,1754925033173,-400.0,0.00016438,2]
[378608058,1754925033184,-204.1422943,0.00016438,2]
[378608059,1754925033193,-400.0,0.00016438,2]
[378608060,1754925033203,-400.0,0.00016438,2]
[378608061,1754925033212,-525.81136141,0.00016438,2]
[378608062,1754925033222,-400.0,0.00016438,2]
[378608063,1754925033232,-400.0,0.00016438,2]
[378608064,1754925033242,-400.0,0.00016438,2]
[378608065,1754925033252,-488.51,0.00016438,2]
[378608066,1754925033262,-400.0,0.00016438,2]
[378608067,1754925033272,-400.0,0.00016438,2]
[378608068,1754925033282,-401.63745886,0.00016438,2]
[378608069,1754925033292,-400.0,0.00016438,2]
[378608070,1754925033301,-400.0,0.00016438,2]
[378608071,1754925033311,-400.0,0.00016438,2]
[378608072,1754925033322,-400.0,0.00016438,2]
[378608073,1754925033332,-400.0,0.00016438,2]
[378608074,1754925033342,-400.0,0.00016438,2]
[378608075,1754925033352,-400.0,0.00016438,2]
[378608076,1754925033362,-445.89,0.00016438,2]
[378608077,1754925033372,-402.99598093,0.00016438,2]
[378608078,1754925033382,-400.0,0.00016438,2]
[378608079,1754925033391,-400.0,0.00016438,2]
[378608080,1754925033401,-400.0,0.00016438,2]
[378608081,1754925033410,-400.0,0.00016438,2]
[378608082,1754925033420,-400.0,0.00016438,2]
[378608083,1754925033432,-400.0,0.00016438,2]
[378608084,1754925033442,-400.0,0.00016438,2]
[378608085,1754925033452,-400.0,0.00016438,2]
[378608086,1754925033461,-302.74555729,0.00016438,2]
[378608087,1754925033471,-400.0,0.00016438,2]
[378608088,1754925033481,-400.0,0.00016438,2]
[378608089,1754925033491,-423.31,0.00016438,2]
[378608090,1754925033501,-400.0,0.00016438,2]
[378608091,1754925033510,-400.0,0.00016438,2]
[378608092,1754925033520,-400.0,0.00016438,2]
[378608093,1754925033531,-402.95115327,0.00016438,2]
[378608094,1754925033540,-400.0,0.00016438,2]
[378608095,1754925033550,-496.01,0.00016438,2]
[378608096,1754925033560,-400.0,0.00016438,2]
[378608097,1754925033570,-400.0,0.00016438,2]
[378608098,1754925033580,-400.0,0.00016438,2]
[378608099,1754925033589,-400.0,0.00016438,2]
[378608100,1754925033599,-400.0,0.00016438,2]
[378608101,1754925033609,-400.0,0.00016438,2]
[378608102,1754925033618,-400.0,0.00016438,2]
[378608103,1754925033628,-479.17,0.00016438,2]
[378608104,1754925033638,-377.68,0.00016438,2]
[378608105,1754925033647,-466.7,0.00016438,2]
[378608106,1754925033656,-400.0,0.00016438,2]
[378608107,1754925033666,-412.85,0.00016438,2]
[378608108,1754925033675,-400.0,0.00016438,2]
[378608109,1754925033688,-400.0,0.00016438,2]
[378608110,1754925033697,-400.0,0.00016438,2]
[378608111,1754925033707,-400.0,0.00016438,2]
[378608112,1754925033717,-400.0,0.00016438,2]
[378608113,1754925033727,-400.0,0.00016438,2]
[378608114,1754925033737,-400.0,0.00016438,2]
[378608115,1754925033747,-450.94,0.00016438,2]
[378608116,1754925033757,-400.0,0.00016438,2]
[378608117,1754925033766,-400.0,0.00016438,2]
[378608118,1754925033775,-478.88,0.00016438,2]
[378608119,1754925033785,-403.4,0.00016438,2]
[378608120,1754925033795,-400.0,0.00016438,2]
[378608121,1754925033804,-400.0,0.00016438,2]
[378608122,1754925033814,-400.0,0.00016438,2]
[378608123,1754925033824,-273.94386148,0.00016438,2]
[378608124,1754925033834,-400.0,0.00016438,2]
[378608125,1754925033843,-427.3,0.00016438,2]
[378608126,1754925033853,-400.0,0.00016438,2]
[378608127,1754925033863,-580.48,0.00016438,2]
[378608128,1754925033873,-400.0,0.00016438,2]
[378608129,1754925033883,-400.0,0.00016438,2]
[378608130,1754925033893,-400.0,0.00016438,2]
[378608131,1754925033902,-400.0,0.00016438,2]
[378608132,1754925033913,-400.0,0.00016438,2]
[378608133,1754925033922,-488.45,0.00016438,2]
[378608134,1754925033934,-414.73,0.00016438,2]
[378608135,1754925033945,-437.45,0.00016438,2]
[378608136,1754925033955,-677.56,0.00016438,2]
[378608137,1754925033964,-400.0,0.00016438,2]
[378608138,1754925033975,-400.0,0.00016438,2]
[378608139,1754925033985,-400.0,0.00016438,2]
[378608140,1754925033995,-618.04,0.00016438,2]
[378608141,1754925034012,-400.0,0.00016438,2]
[378608142,1754925034022,-400.0,0.00016438,2]
[378608143,1754925034032,-473.95,0.00016438,2]
[378608144,1754925034043,-400.0,0.00016438,2]
[378608145,1754925034052,-400.0,0.00016438,2]
[378608146,1754925034063,-400.0,0.00016438,2]
[378608147,1754925034073,-400.0,0.00016438,2]
[378608148,1754925034083,-324.12040465,0.00016438,2]
[378608149,1754925034094,-522.06,0.00016438,2]
[378608150,1754925034103,-400.0,0.00016438,2]
[378608151,1754925034114,-400.0,0.00016438,2]
[378608152,1754925034123,-196.74,0.00016438,2]
[378608153,1754925034133,-400.0,0.00016438,2]
[378608154,1754925034143,-400.0,0.00016438,2]
[378608155,1754925034152,-400.0,0.00016438,2]
[378608156,1754925034162,-400.0,0.00016438,2]
[378608157,1754925034172,-400.0,0.00016438,2]
[378608158,1754925034182,-400.0,0.00016438,2]
[378608159,1754925034192,-400.0,0.00016438,2]
[378608160,1754925034202,-400.0,0.00016438,2]
[378608161,1754925034211,-400.0,0.00016438,2]
[378608162,1754925034220,-400.0,0.00016438,2]
[378608163,1754925034230,-500.0,0.00016438,2]
[378608164,1754925034239,-400.0,0.00016438,2]
[378608165,1754925034248,-400.0,0.00016438,2]
[378608166,1754925034257,-400.0,0.00016438,2]
[378608167,1754925034266,-400.0,0.00016438,2]
[378608168,1754925034276,-400.0,0.00016438,2]
[378608169,1754925034285,-595.96,0.00016438,2]
[378608170,1754925034295,-718.24,0.00016438,2]
[378608171,1754925034304,-513.03,0.00016438,2]
[378608172,1754925034313,-400.0,0.00016438,2]
[378608173,1754925034323,-2100.23,0.00016438,2]
[378608174,1754925034332,-400.0,0.00016438,2]
[378608175,1754925034342,-400.0,0.00016438,2]
[378608176,1754925034351,-400.0,0.00016438,2]
[378608177,1754925034360,-1499.43,0.00016438,2]
[378608178,1754925034369,-400.0,0.00016438,2]
[378608179,1754925034378,-400.0,0.00016438,2]
[378608180,1754925034387,-1108.17,0.00016438,2]
[378608181,1754925034397,-400.0,0.00016438,2]
[378608182,1754925034406,-400.0,0.00016438,2]
[378608183,1754925034415,-620.96,0.00016438,2]
[378608184,1754925034424,-400.0,0.00016438,2]
[378608185,1754925034436,-400.0,0.00016438,2]
[378608186,1754925034446,-400.0,0.00016438,2]
[378608187,1754925034455,-400.0,0.00016438,2]
[378608188,1754925034465,-400.0,0.00016438,2]
[378608189,1754925034475,-763.29,0.00016438,2]
[378608190,1754925034484,-1113.54,0.00016438,2]
[378608191,1754925034494,-400.0,0.00016438,2]
[378608192,1754925034504,-400.0,0.00016438,2]
[378608193,1754925034514,-400.0,0.00016438,2]
[378608194,1754925034523,-400.0,0.00016438,2]
[378608195,1754925034532,-428.41,0.00016438,2]
[378608196,1754925034542,-1117.54,0.00016438,2]
[378608197,1754925034552,-705.22,0.00016438,2]
[378608198,1754925034561,-400.0,0.00016438,2]
[378608199,1754925034571,-1297.22,0.00016438,2]
[378608200,1754925034580,-400.0,0.00016438,2]
[378608201,1754925034589,-529.42,0.00016438,2]
[378608202,1754925034599,-400.0,0.00016438,2]
[378608203,1754925034609,-400.0,0.00016438,2]
[378608204,1754925034618,-400.0,0.00016438,2]
[378608205,1754925034628,-400.0,0.00016438,2]
[378608206,1754925034638,-605.22,0.00016438,2]
[378608207,1754925034647,-828.7,0.00016438,2]
[378608208,1754925034657,-400.0,0.00016438,2]
[378608209,1754925034667,-400.0,0.00016438,2]
[378608210,1754925034676,-400.0,0.00016438,2]
[378608211,1754925034689,-500.0,0.00016438,2]
[378608212,1754925034699,-394.186519,0.00016438,2]
[378608213,1754925034709,-400.0,0.00016438,2]
[378608214,1754925034720,-400.0,0.00016438,2]
[378608215,1754925034729,-2333.59,0.00016438,2]
[378608216,1754925034740,-400.0,0.00016438,2]
[378608217,1754925034748,-528.17,0.00016438,2]
[378608218,1754925034758,-400.0,0.00016438,2]
[378608219,1754925034768,-657.37,0.00016438,2]
[378608220,1754925034778,-400.0,0.00016438,2]
[378608221,1754925034787,-475.25,0.00016438,2]
[378608222,1754925034797,-400.0,0.00016438,2]
[378608223,1754925034806,-400.0,0.00016438,2]
[378608224,1754925034816,-400.0,0.00016438,2]
[378608225,1754925034826,-400.0,0.00016438,2]
[378608226,1754925034835,-400.0,0.00016438,2]
[378608227,1754925034845,-400.0,0.00016438,2]
[378608228,1754925034855,-1146.54,0.00016438,2]
[378608229,1754925034864,-598.82,0.00016438,2]
[378608230,1754925034874,-400.0,0.00016438,2]
[378608231,1754925034884,-400.0,0.00016438,2]
[378608232,1754925034894,-472.18,0.00016438,2]
[378608233,1754925034903,-400.0,0.00016438,2]
[378608234,1754925034912,-518.31,0.00016438,2]
[378608235,1754925034922,-400.0,0.00016438,2]
[378608236,1754925034935,-944.87,0.00016438,2]
[378608237,1754925034947,-400.0,0.00016438,2]
[378608238,1754925034957,-400.0,0.00016438,2]
[378608239,1754925034967,-400.0,0.00016438,2]
[378608240,1754925034977,-400.0,0.00016438,2]
[378608241,1754925034987,-400.0,0.00016438,2]
[378608242,1754925034997,-400.0,0.00016438,2]
[378608243,1754925035012,-400.0,0.00016438,2]
[378608244,1754925035022,-469.28,0.00016438,2]
[378608245,1754925035032,-1157.85,0.00016438,2]
[378608246,1754925035271,-400.0,0.00016438,2]
[378608247,1754925035327,-400.0,0.00016438,2]
[378608248,1754925035338,-920.43,0.00016438,2]
[378608249,1754925035348,-400.0,0.00016438,2]
[378608250,1754925035358,-400.0,0.00016438,2]
[378608251,1754925035368,-404.09713229,0.00016438,2]
[378608252,1754925035378,-400.0,0.00016438,2]
[378608253,1754925035387,-400.0,0.00016438,2]
[378608254,1754925035397,-400.0,0.00016438,2]
[378608255,1754925035407,-400.0,0.00016438,2]
[378608256,1754925035416,-820.92,0.00016438,2]
[378608257,1754925035426,-400.0,0.00016438,2]
[378608258,1754925035440,-611.64,0.00016438,2]
[378608259,1754925035449,-400.0,0.00016438,2]
[378608260,1754925035458,-400.0,0.00016438,2]
[378608261,1754925035467,-542.59,0.00016438,2]
[378608262,1754925035477,-400.0,0.00016438,2]
[378608263,1754925035486,-1107.21,0.00016438,2]
[378608264,1754925035495,-546.28,0.00016438,2]
[378608265,1754925035504,-400.0,0.00016438,2]
[378608266,1754925035513,-500.0,0.00016438,2]
[378608267,1754925035523,-400.0,0.00016438,2]
[378608268,1754925035532,-592.88,0.00016438,2]
[378608269,1754925035541,-400.0,0.00016438,2]
[378608270,1754925035550,-470.46,0.00016438,2]
[378608271,1754925035560,-400.0,0.00016438,2]
[378608272,1754925035569,-154.66176742,0.00016438,2]
[378608273,1754925035578,-400.0,0.00016438,2]
[378608274,1754925035587,-893.06,0.00016438,2]
[378608275,1754925035597,-400.0,0.00016438,2]
[378608276,1754925035606,-863.45,0.00016438,2]
[378608277,1754925035615,-400.0,0.00016438,2]
[378608278,1754925035624,-312.76595245,0.00016438,2]
[378608279,1754925035633,-400.0,0.00016438,2]
[378608280,1754925035643,-400.0,0.00016438,2]
[378608281,1754925035653,-400.0,0.00016438,2]
[378608282,1754925035662,-400.0,0.00016438,2]
[378608283,1754925035671,-402.07484476,0.00016438,2]
[378608284,1754925035684,-400.0,0.00016438,2]
[378608285,1754925035693,-400.0,0.00016438,2]
[378608286,1754925035702,-400.0,0.00016438,2]
[378608287,1754925035712,-250.0,0.00016438,2]
[378608288,1754925035720,-405.8,0.00016438,2]
[378608289,1754925035730,-400.0,0.00016438,2]
[378608290,1754925035740,-400.0,0.00016438,2]
[378608291,1754925035750,-400.0,0.00016438,2]
[378608292,1754925035760,-499.69,0.00016438,2]
[378608293,1754925035769,-612.24,0.00016438,2]
[378608294,1754925035778,-400.0,0.00016438,2]
[378608295,1754925035787,-400.0,0.00016438,2]
[378608296,1754925035797,-400.0,0.00016438,2]
[378608297,1754925035806,-400.0,0.00016438,2]
[378608298,1754925035815,-515.72,0.00016438,2]
[378608299,1754925035824,-424.01,0.00016438,2]
[378608300,1754925035833,-400.0,0.00016438,2]
[378608301,1754925035843,-400.0,0.00016438,2]
[378608302,1754925035852,-400.0,0.00016438,2]
[378608303,1754925035862,-400.0,0.00016438,2]
[378608304,1754925035872,-400.0,0.00016438,2]
[378608305,1754925035881,-450.13,0.00016438,2]
[378608306,1754925035891,-500.0,0.00016438,2]
[378608307,1754925035900,-546.16,0.00016438,2]
[378608308,1754925035910,-776.68,0.00016438,2]
[378608309,1754925035921,-400.0,0.00016438,2]
[378608310,1754925035931,-400.0,0.00016438,2]
[378608311,1754925035942,-430.21,0.00016438,2]
[378608312,1754925035951,-400.0,0.00016438,2]
[378608313,1754925035960,-407.91,0.00016438,2]
[378608314,1754925035969,-400.0,0.00016438,2]
[378608315,1754925035978,-400.0,0.00016438,2]
[378608316,1754925035987,-400.0,0.00016438,2]
[378608317,1754925035997,-400.0,0.00016438,2]
[378608318,1754925036011,-400.0,0.00016438,2]
[378608319,1754925036020,-400.0,0.00016438,2]
[378608320,1754925036029,-400.0,0.00016438,2]
[378608321,1754925036039,-400.0,0.00016438,2]
[378608322,1754925036049,-400.0,0.00016438,2]
[378608323,1754925036059,-400.0,0.00016438,2]
[378608324,1754925036068,-400.0,0.00016438,2]
[378608325,1754925036077,-400.0,0.00016438,2]
[378608326,1754925036087,-400.0,0.00016438,2]
[378608327,1754925036096,-400.0,0.00016438,2]
[378608328,1754925036105,-400.0,0.00016438,2]
[378608329,1754925036114,-400.0,0.00016438,2]
[378608330,1754925036123,-400.0,0.00016438,2]
[378608331,1754925036132,-400.0,0.00016438,2]
[378608332,1754925036141,-615.18,0.00016438,2]
[378608333,1754925036151,-400.0,0.00016438,2]
[378608334,1754925036160,-962.35,0.00016438,2]
[378608335,1754925036169,-703.29,0.00016438,2]
[378608336,1754925036178,-400.0,0.00016438,2]
[378608337,1754925036191,-551.8,0.00016438,2]
[378608338,1754925036200,-498.75,0.00016438,2]
[378608339,1754925036210,-917.6,0.00016438,2]
[378608340,1754925036219,-562.44,0.00016438,2]
[378608341,1754925036229,-1044.18,0.00016438,2]
[378608342,1754925036238,-517.66,0.00016438,2]
[378608343,1754925036247,-400.0,0.00016438,2]
[378608344,1754925036256,-400.0,0.00016438,2]
[378608345,1754925036266,-400.0,0.00016438,2]
[378608346,1754925036275,-482.69,0.00016438,2]
[378608347,1754925036284,-400.0,0.00016438,2]
[378608348,1754925036294,-400.0,0.00016438,2]
[378608349,1754925036304,-400.0,0.00016438,2]
[378608350,1754925036315,-400.0,0.00016438,2]
[378608351,1754925036325,-695.48,0.00016438,2]
[378608352,1754925036335,-401.31792464,0.00016438,2]
[378608353,1754925036344,-437.0,0.00016438,2]
[378608354,1754925036354,-402.93873317,0.00016438,2]
[378608355,1754925036363,-483.95,0.00016438,2]
[378608356,1754925036373,-462.58,0.00016438,2]
[378608357,1754925036383,-400.0,0.00016438,2]
[378608358,1754925036393,-250.64571662,0.00016438,2]
[378608359,1754925036403,-400.0,0.00016438,2]
[378608360,1754925036412,-400.0,0.00016438,2]
[378608361,1754925036423,-402.55000991,0.00016438,2]
[378608362,1754925036436,-400.0,0.00016438,2]
[378608363,1754925036445,-400.0,0.00016438,2]
[378608364,1754925036455,-400.0,0.00016438,2]
[378608365,1754925036465,-400.0,0.00016438,2]
[378608366,1754925036474,-621.99,0.00016438,2]
[378608367,1754925036484,-400.0,0.00016438,2]
[378608368,1754925036494,-423.34,0.00016438,2]
[378608369,1754925036503,-526.12,0.00016438,2]
[378608370,1754925036512,-381.04967407,0.00016438,2]
[378608371,1754925036522,-400.0,0.00016438,2]
[378608372,1754925036531,-400.0,0.00016438,2]
[378608373,1754925036540,-790.08,0.00016438,2]
[378608374,1754925036549,-400.0,0.00016438,2]
[378608375,1754925036558,-400.0,0.00016438,2]
[378608376,1754925036568,-400.0,0.00016438,2]
[378608377,1754925036577,-443.41,0.00016438,2]
[378608378,1754925036586,-400.0,0.00016438,2]
[378608379,1754925036595,-400.0,0.00016438,2]
[378608380,1754925036604,-400.0,0.00016438,2]
[378608381,1754925036613,-400.0,0.00016438,2]
[378608382,1754925036623,-400.0,0.00016438,2]
[378608383,1754925036632,-501.88,0.00016438,2]
[378608384,1754925036641,-474.70965486,0.00016438,2]
[378608385,1754925036650,-400.0,0.00016438,2]
[378608386,1754925036659,-453.93,0.00016438,2]
[378608387,1754925036669,-400.0,0.00016438,2]
[378608388,1754925036678,-523.71,0.00016438,2]
[378608389,1754925036691,-861.39,0.00016438,2]
[378608390,1754925036701,-400.0,0.00016438,2]
[378608391,1754925036710,-401.22946725,0.00016438,2]
[378608392,1754925036719,-400.0,0.00016438,2]
[378608393,1754925036729,-400.0,0.00016438,2]
[378608394,1754925036739,-400.0,0.00016438,2]
[378608395,1754925036748,-456.32,0.00016438,2]
[378608396,1754925036758,-471.69,0.00016438,2]
[378608397,1754925036767,-400.0,0.00016438,2]
[378608398,1754925036777,-400.0,0.00016438,2]
[378608399,1754925036787,-402.66,0.00016438,2]
[378608400,1754925036796,-400.0,0.00016438,2]
[378608401,1754925036805,-400.0,0.00016438,2]
[378608402,1754925036814,-400.0,0.00016438,2]
[378608403,1754925036823,-492.76,0.00016438,2]
[378608404,1754925036834,-400.0,0.00016438,2]
[378608405,1754925036843,-400.0,0.00016438,2]
[378608406,1754925036853,-400.0,0.00016438,2]
[378608407,1754925036862,-658.43,0.00016438,2]
[378608408,1754925036872,-400.0,0.00016438,2]
[378608409,1754925036882,-400.0,0.00016438,2]
[378608410,1754925036892,-400.0,0.00016438,2]
[378608411,1754925036901,-400.0,0.00016438,2]
[378608412,1754925036911,-400.0,0.00016438,2]
[378608413,1754925036920,-400.0,0.00016438,2]
[378608414,1754925036929,-400.0,0.00016438,2]
[378608415,1754925036941,-634.53,0.00016438,2]
[378608416,1754925036951,-400.0,0.00016438,2]
[378608417,1754925036960,-400.0,0.00016438,2]
[378608418,1754925036970,-400.0,0.00016438,2]
[378608419,1754925036980,-799.18,0.00016438,2]
[378608420,1754925036990,-403.6329811,0.00016438,2]
[378608421,1754925037000,-505.74,0.00016438,2]
[378608422,1754925037014,-400.0,0.00016438,2]
[378608423,1754925037023,-400.0,0.00016438,2]
[378608424,1754925037032,-400.0,0.00016438,2]
[378608425,1754925037042,-1120.93,0.00016438,2]
[378608426,1754925037053,-992.0,0.00016438,2]
[378608427,1754925037063,-400.0,0.00016438,2]
[378608428,1754925037072,-506.4,0.00016438,2]
[378608429,1754925037083,-400.0,0.00016438,2]
[378608430,1754925037092,-400.0,0.00016438,2]
[378608431,1754925037102,-400.0,0.00016438,2]
[378608432,1754925037111,-917.7,0.00016438,2]
[378608433,1754925037121,-400.0,0.00016438,2]
[378608434,1754925037130,-400.0,0.00016438,2]
[378608435,1754925037140,-400.0,0.00016438,2]
[378608436,1754925037149,-782.49,0.00016438,2]
[378608437,1754925037159,-400.0,0.00016438,2]
[378608438,1754925037168,-400.0,0.00016438,2]
[378608439,1754925037178,-400.0,0.00016438,2]